[Event "*** Titled Tuesday Blitz"]
[Site "Chess.com"]
[Date "2020.11.10"]
[Round "3"]
[White "PattyCastillo"]
[Black "VladaSviridova"]
[Result "1/2-1/2"]
[WhiteElo "1968"]
[BlackElo "2258"]
[TimeControl "180+1"]
[EndTime "10:32:26 PST"]
[Termination "Game drawn - insufficient material"]

1. d4 {[%clk 0:03:00.9]} 1... d5 {[%clk 0:02:59.5]} 2. Nf3 {[%clk 0:03:00.8]}
2... Nf6 {[%clk 0:02:59.2]} 3. e3 {[%clk 0:03:00.8]} 3... c5 {[%clk 0:02:59]} 4.
Bd3 {[%clk 0:03:00.4]} 4... Nc6 {[%clk 0:02:57.8]} 5. b3 {[%clk 0:03:00.2]} 5...
e6 {[%clk 0:02:56]} 6. Bb2 {[%clk 0:03:00.4]} 6... Bd6 {[%clk 0:02:55.8]} 7. O-O
{[%clk 0:03:00]} 7... O-O {[%clk 0:02:55.9]} 8. Nbd2 {[%clk 0:03:00.2]} 8... b6
{[%clk 0:02:56]} 9. Ne5 {[%clk 0:02:59.7]} 9... Bb7 {[%clk 0:02:56.3]} 10. f4
{[%clk 0:02:59.4]} 10... Ne7 {[%clk 0:02:56]} 11. Qe2 {[%clk 0:02:59]} 11... Rc8
{[%clk 0:02:41.9]} 12. Rac1 {[%clk 0:02:58.3]} 12... Ne4 {[%clk 0:02:37.3]} 13.
Nxe4 {[%clk 0:02:27.6]} 13... dxe4 {[%clk 0:02:37]} 14. Bc4 {[%clk 0:02:28]}
14... Kh8 {[%clk 0:02:14.1]} 15. Rfd1 {[%clk 0:02:23.6]} 15... Qc7 {[%clk
0:02:11.8]} 16. a3 {[%clk 0:02:10.9]} 16... a5 {[%clk 0:02:09.3]} 17. Rd2 {[%clk
0:01:58.9]} 17... Rcd8 {[%clk 0:02:00]} 18. Rcd1 {[%clk 0:01:58.4]} 18... Nd5
{[%clk 0:01:05.4]} 19. Bb5 {[%clk 0:01:24.3]} 19... cxd4 {[%clk 0:01:03.9]} 20.
Bxd4 {[%clk 0:01:08.4]} 20... Bxa3 {[%clk 0:01:01.3]} 21. Qg4 {[%clk 0:01:00]}
21... Nf6 {[%clk 0:00:42.8]} 22. Qg5 {[%clk 0:00:52]} 22... h6 {[%clk
0:00:40.4]} 23. Qh4 {[%clk 0:00:43.4]} 23... Bc5 {[%clk 0:00:37.7]} 24. Ng4
{[%clk 0:00:19.6]} 24... Bxd4 {[%clk 0:00:35.6]} 25. Rxd4 {[%clk 0:00:19.5]}
25... Rxd4 {[%clk 0:00:34.5]} 26. Rxd4 {[%clk 0:00:18.6]} 26... Nxg4 {[%clk
0:00:33.8]} 27. Qxg4 {[%clk 0:00:17.9]} 27... Rd8 {[%clk 0:00:33.9]} 28. Rxd8+
{[%clk 0:00:16.2]} 28... Qxd8 {[%clk 0:00:33.9]} 29. Qe2 {[%clk 0:00:14.4]}
29... Qd6 {[%clk 0:00:32.4]} 30. Kf2 {[%clk 0:00:14]} 30... Bd5 {[%clk
0:00:31.7]} 31. c4 {[%clk 0:00:12.4]} 31... Bb7 {[%clk 0:00:31.2]} 32. Qc2
{[%clk 0:00:11.5]} 32... f5 {[%clk 0:00:30.5]} 33. Qc3 {[%clk 0:00:09.7]} 33...
Kg8 {[%clk 0:00:30.3]} 34. h3 {[%clk 0:00:08.6]} 34... Kf7 {[%clk 0:00:30.4]}
35. g4 {[%clk 0:00:08.6]} 35... Qd3 {[%clk 0:00:29.3]} 36. Qe5 {[%clk
0:00:06.2]} 36... Qd2+ {[%clk 0:00:28.5]} 37. Kf1 {[%clk 0:00:02.3]} 37... Qd7
{[%clk 0:00:27]} 38. Bxd7 {[%clk 0:00:01.3]} 38... Ke7 {[%clk 0:00:26.2]} 39.
Qc7 {[%clk 0:00:01.5]} 39... Ba6 {[%clk 0:00:24.4]} 40. Bxe6+ {[%clk 0:00:02.1]}
40... Kxe6 {[%clk 0:00:24.4]} 41. Qxb6+ {[%clk 0:00:02.8]} 41... Ke7 {[%clk
0:00:23.4]} 42. Qxa6 {[%clk 0:00:03.7]} 42... fxg4 {[%clk 0:00:23]} 43. Qxa5
{[%clk 0:00:04.6]} 43... gxh3 {[%clk 0:00:22.2]} 44. Qb4+ {[%clk 0:00:05.5]}
44... Ke6 {[%clk 0:00:21.7]} 45. Kg1 {[%clk 0:00:06.4]} 45... Kf5 {[%clk
0:00:21.7]} 46. Qc5+ {[%clk 0:00:07.3]} 46... Kg4 {[%clk 0:00:21.3]} 47. Qb6
{[%clk 0:00:08.2]} 47... h5 {[%clk 0:00:20.3]} 48. Qd4 {[%clk 0:00:09.1]} 48...
Kg3 {[%clk 0:00:19.5]} 49. Qxg7+ {[%clk 0:00:08.7]} 49... Kf3 {[%clk 0:00:18.9]}
50. Qe5 {[%clk 0:00:08.8]} 50... Kxe3 {[%clk 0:00:18]} 51. Kh2 {[%clk
0:00:09.7]} 51... Kf3 {[%clk 0:00:18.3]} 52. Qf5 {[%clk 0:00:10.1]} 52... e3
{[%clk 0:00:18.8]} 53. Qd5+ {[%clk 0:00:10.6]} 53... Kxf4 {[%clk 0:00:18.5]} 54.
Qd4+ {[%clk 0:00:10.7]} 54... Kf3 {[%clk 0:00:18.6]} 55. Qxe3+ {[%clk
0:00:11.1]} 55... Kxe3 {[%clk 0:00:18.6]} 56. c5 {[%clk 0:00:12]} 56... Kd4
{[%clk 0:00:17.4]} 57. c6 {[%clk 0:00:12.9]} 57... Kc5 {[%clk 0:00:17.6]} 58.
Kxh3 {[%clk 0:00:13.8]} 58... Kxc6 {[%clk 0:00:17.5]} 59. Kh4 {[%clk 0:00:13]}
59... Kb5 {[%clk 0:00:18.2]} 60. Kxh5 {[%clk 0:00:13.9]} 60... Kb4 {[%clk
0:00:18.7]} 61. Kg4 {[%clk 0:00:14.4]} 61... Kxb3 {[%clk 0:00:19.2]} 1/2-1/2

[Event "*** Titled Tuesday Blitz"]
[Site "Chess.com"]
[Date "2020.11.10"]
[Round "3"]
[White "goldenpuppy"]
[Black "Meri-Arabidze"]
[Result "0-1"]
[WhiteElo "2396"]
[BlackElo "2612"]
[TimeControl "180+1"]
[EndTime "10:32:27 PST"]
[Termination "Meri-Arabidze won on time"]

1. e4 {[%clk 0:03:00.9]} 1... c5 {[%clk 0:02:59.6]} 2. Nf3 {[%clk 0:02:59.8]}
2... e6 {[%clk 0:03:00.5]} 3. d4 {[%clk 0:02:59.1]} 3... cxd4 {[%clk 0:03:01.4]}
4. Nxd4 {[%clk 0:02:59.6]} 4... Nc6 {[%clk 0:03:01.4]} 5. Nxc6 {[%clk
0:02:56.8]} 5... bxc6 {[%clk 0:03:01.3]} 6. Nc3 {[%clk 0:02:56]} 6... d5 {[%clk
0:03:01.3]} 7. exd5 {[%clk 0:02:54.4]} 7... cxd5 {[%clk 0:03:00.9]} 8. Bb5+
{[%clk 0:02:52.7]} 8... Bd7 {[%clk 0:03:00.7]} 9. Qd3 {[%clk 0:02:52.3]} 9...
Nf6 {[%clk 0:02:59.3]} 10. O-O {[%clk 0:02:51.4]} 10... Be7 {[%clk 0:02:58.6]}
11. f4 {[%clk 0:02:51]} 11... O-O {[%clk 0:02:55.7]} 12. Be3 {[%clk 0:02:50.3]}
12... Rc8 {[%clk 0:02:36]} 13. Bxd7 {[%clk 0:02:48.5]} 13... Qxd7 {[%clk
0:02:34.6]} 14. Kh1 {[%clk 0:02:47.6]} 14... Qb7 {[%clk 0:02:29.9]} 15. Bd4
{[%clk 0:02:43.5]} 15... Nd7 {[%clk 0:02:02]} 16. Rae1 {[%clk 0:02:36.9]} 16...
Bf6 {[%clk 0:02:00.1]} 17. Bxf6 {[%clk 0:01:39.5]} 17... Nxf6 {[%clk 0:02:01]}
18. Nd1 {[%clk 0:01:30.1]} 18... Ne4 {[%clk 0:01:58.9]} 19. f5 {[%clk
0:01:26.7]} 19... Qc6 {[%clk 0:01:43.8]} 20. c3 {[%clk 0:01:25.4]} 20... Qa4
{[%clk 0:01:38.6]} 21. a3 {[%clk 0:01:23.4]} 21... Qb3 {[%clk 0:01:27.7]} 22.
Rf3 {[%clk 0:01:17.5]} 22... exf5 {[%clk 0:01:23.4]} 23. Rxf5 {[%clk 0:01:15.8]}
23... Rcd8 {[%clk 0:01:08]} 24. Ref1 {[%clk 0:01:14.6]} 24... f6 {[%clk
0:01:06.8]} 25. Qd4 {[%clk 0:01:06.5]} 25... a6 {[%clk 0:00:59.6]} 26. Ne3
{[%clk 0:00:52.8]} 26... Qxb2 {[%clk 0:00:54.8]} 27. Nxd5 {[%clk 0:00:52.6]}
27... Ng5 {[%clk 0:00:43.9]} 28. Ne7+ {[%clk 0:00:48.9]} 28... Kh8 {[%clk
0:00:38.9]} 29. Qh4 {[%clk 0:00:46.8]} 29... Rfe8 {[%clk 0:00:28]} 30. Ng6+
{[%clk 0:00:45.2]} 30... Kg8 {[%clk 0:00:25.8]} 31. Qc4+ {[%clk 0:00:44.8]}
31... Nf7 {[%clk 0:00:24.5]} 32. Nf4 {[%clk 0:00:42.3]} 32... Rc8 {[%clk
0:00:19.3]} 33. Qxa6 {[%clk 0:00:38.7]} 33... Qxc3 {[%clk 0:00:19.5]} 34. Nd5
{[%clk 0:00:37.5]} 34... Qc4 {[%clk 0:00:17.6]} 35. Qb7 {[%clk 0:00:31.7]} 35...
Nd6 {[%clk 0:00:11.7]} 36. Qd7 {[%clk 0:00:20.1]} 36... Nxf5 {[%clk 0:00:10.9]}
37. Qxf5 {[%clk 0:00:13.5]} 37... Re5 {[%clk 0:00:10.6]} 38. Nxf6+ {[%clk
0:00:11.3]} 38... gxf6 {[%clk 0:00:10.1]} 39. Qxf6 {[%clk 0:00:12.2]} 39... Qe6
{[%clk 0:00:08.3]} 40. Qf4 {[%clk 0:00:10.6]} 40... Re8 {[%clk 0:00:08.1]} 41.
h4 {[%clk 0:00:08.2]} 41... Re4 {[%clk 0:00:07.9]} 42. Qg5+ {[%clk 0:00:08]}
42... Qg6 {[%clk 0:00:07.7]} 43. Qd5+ {[%clk 0:00:08.2]} 43... Kh8 {[%clk
0:00:06.6]} 44. h5 {[%clk 0:00:05.5]} 44... Qg7 {[%clk 0:00:03.6]} 45. Rf7
{[%clk 0:00:03.6]} 45... Qa1+ {[%clk 0:00:03]} 46. Kh2 {[%clk 0:00:03.3]} 46...
R4e5 {[%clk 0:00:03.4]} 47. Qd7 {[%clk 0:00:02.1]} 47... Rxh5+ {[%clk
0:00:03.3]} 48. Kg3 {[%clk 0:00:02.1]} 48... Qe5+ {[%clk 0:00:03.7]} 49. Kf3
{[%clk 0:00:01.1]} 49... Qe2+ {[%clk 0:00:03.5]} 0-1

[Event "*** Titled Tuesday Blitz"]
[Site "Chess.com"]
[Date "2020.11.10"]
[Round "3"]
[White "124chess"]
[Black "SerGo055"]
[Result "1-0"]
[WhiteElo "2733"]
[BlackElo "2438"]
[TimeControl "180+1"]
[EndTime "10:32:28 PST"]
[Termination "124chess won by checkmate"]

1. d4 {[%clk 0:03:00.9]} 1... Nf6 {[%clk 0:02:56.7]} 2. c4 {[%clk 0:03:01.5]}
2... e6 {[%clk 0:02:56.1]} 3. Nc3 {[%clk 0:03:02]} 3... d5 {[%clk 0:02:55.7]} 4.
cxd5 {[%clk 0:03:01.6]} 4... exd5 {[%clk 0:02:55.7]} 5. Bg5 {[%clk 0:03:01.8]}
5... c6 {[%clk 0:02:56]} 6. e3 {[%clk 0:03:02.1]} 6... Be7 {[%clk 0:02:56]} 7.
Bd3 {[%clk 0:03:02.1]} 7... Nbd7 {[%clk 0:02:55.3]} 8. Nf3 {[%clk 0:03:02.4]}
8... O-O {[%clk 0:02:49.4]} 9. O-O {[%clk 0:03:02.8]} 9... Re8 {[%clk 0:02:48]}
10. Rb1 {[%clk 0:03:01.4]} 10... Ne4 {[%clk 0:02:41.7]} 11. Bf4 {[%clk
0:02:59.4]} 11... Ndf6 {[%clk 0:02:28.3]} 12. Qc2 {[%clk 0:02:55.3]} 12... Bf5
{[%clk 0:02:23]} 13. Ne5 {[%clk 0:02:45.2]} 13... Nxc3 {[%clk 0:02:19]} 14. bxc3
{[%clk 0:02:40.2]} 14... Bxd3 {[%clk 0:02:18.7]} 15. Qxd3 {[%clk 0:02:38.7]}
15... Qc8 {[%clk 0:02:15.8]} 16. c4 {[%clk 0:02:38.6]} 16... Bd6 {[%clk
0:02:06]} 17. Rfc1 {[%clk 0:02:37.3]} 17... Bxe5 {[%clk 0:01:44.8]} 18. Bxe5
{[%clk 0:02:31.3]} 18... dxc4 {[%clk 0:01:45]} 19. Qxc4 {[%clk 0:02:32]} 19...
Nd5 {[%clk 0:01:44.6]} 20. Bg3 {[%clk 0:02:24.5]} 20... Qd7 {[%clk 0:01:41.1]}
21. Qb3 {[%clk 0:02:23.3]} 21... Re7 {[%clk 0:01:39.2]} 22. h3 {[%clk
0:02:14.4]} 22... Rae8 {[%clk 0:01:29.3]} 23. Bh4 {[%clk 0:02:14]} 23... f6
{[%clk 0:01:27.3]} 24. Bg3 {[%clk 0:02:12.2]} 24... Kh8 {[%clk 0:01:26.5]} 25.
a4 {[%clk 0:02:11.3]} 25... h5 {[%clk 0:01:14.4]} 26. Qc4 {[%clk 0:02:02.7]}
26... g5 {[%clk 0:01:02.1]} 27. h4 {[%clk 0:01:55.1]} 27... Qg4 {[%clk
0:00:56.2]} 28. hxg5 {[%clk 0:01:45.3]} 28... Qxg5 {[%clk 0:00:18.7]} 29. Qe2
{[%clk 0:01:24.9]} 29... Nxe3 {[%clk 0:00:16.2]} 30. Qf3 {[%clk 0:01:18.5]}
30... Nd5 {[%clk 0:00:11.2]} 31. a5 {[%clk 0:01:07]} 31... a6 {[%clk 0:00:09.7]}
32. Bd6 {[%clk 0:01:06.4]} 32... Rg7 {[%clk 0:00:09]} 33. Re1 {[%clk 0:01:00.8]}
33... Rd8 {[%clk 0:00:08.8]} 34. Bc5 {[%clk 0:00:55.6]} 34... Rdg8 {[%clk
0:00:08.3]} 35. Kf1 {[%clk 0:00:46.3]} 35... Qxg2+ {[%clk 0:00:05]} 36. Qxg2
{[%clk 0:00:47.2]} 36... Rxg2 {[%clk 0:00:05.4]} 37. Rxb7 {[%clk 0:00:45.3]}
37... Nf4 {[%clk 0:00:05.5]} 38. f3 {[%clk 0:00:40.5]} 38... Rh2 {[%clk
0:00:02.4]} 39. Ree7 {[%clk 0:00:31.4]} 39... Rh1+ {[%clk 0:00:01.7]} 40. Kf2
{[%clk 0:00:31.7]} 40... Rg2+ {[%clk 0:00:02.4]} 41. Ke3 {[%clk 0:00:29.3]}
41... Nd5+ {[%clk 0:00:03]} 42. Kd3 {[%clk 0:00:29.4]} 42... Rd1+ {[%clk
0:00:03.2]} 43. Ke4 {[%clk 0:00:25.8]} 43... Re2+ {[%clk 0:00:02.7]} 44. Kf5
{[%clk 0:00:25.9]} 44... Nxe7+ {[%clk 0:00:01.7]} 45. Bxe7 {[%clk 0:00:26.8]}
45... Rxd4 {[%clk 0:00:02]} 46. Bxf6+ {[%clk 0:00:26.8]} 46... Kg8 {[%clk
0:00:02.6]} 47. Bxd4 {[%clk 0:00:25.6]} 47... Kf8 {[%clk 0:00:02.7]} 48. Rb6
{[%clk 0:00:16.8]} 48... Ke8 {[%clk 0:00:02.9]} 49. Rxa6 {[%clk 0:00:16.7]}
49... Rd2 {[%clk 0:00:03.6]} 50. Be5 {[%clk 0:00:16.4]} 50... Kd7 {[%clk
0:00:04.5]} 51. Ra7+ {[%clk 0:00:16.6]} 51... Kc8 {[%clk 0:00:04.5]} 52. a6
{[%clk 0:00:17]} 52... Kd8 {[%clk 0:00:05.1]} 53. Ke6 {[%clk 0:00:15.7]} 53...
Rd5 {[%clk 0:00:06]} 54. Ra8# {[%clk 0:00:15.6]} 1-0

[Event "*** Titled Tuesday Blitz"]
[Site "Chess.com"]
[Date "2020.11.10"]
[Round "3"]
[White "pavelalexandru07"]
[Black "Dr_Thomas_Quilter"]
[Result "1-0"]
[WhiteElo "2299"]
[BlackElo "2059"]
[TimeControl "180+1"]
[EndTime "10:32:29 PST"]
[Termination "pavelalexandru07 won by checkmate"]

1. e4 {[%clk 0:03:00.9]} 1... e5 {[%clk 0:02:57.2]} 2. Nf3 {[%clk 0:03:00.7]}
2... Nc6 {[%clk 0:02:56.7]} 3. Bb5 {[%clk 0:03:00.4]} 3... a6 {[%clk 0:02:56.7]}
4. Ba4 {[%clk 0:03:00.2]} 4... d6 {[%clk 0:02:56.9]} 5. O-O {[%clk 0:02:59.7]}
5... Bd7 {[%clk 0:02:57.3]} 6. c3 {[%clk 0:02:59.2]} 6... Nf6 {[%clk 0:02:56.1]}
7. Re1 {[%clk 0:02:59.5]} 7... g6 {[%clk 0:02:56]} 8. d4 {[%clk 0:02:53.7]} 8...
Bg7 {[%clk 0:02:55.9]} 9. Nbd2 {[%clk 0:02:53.5]} 9... O-O {[%clk 0:02:53.2]}
10. Nf1 {[%clk 0:02:53.7]} 10... Re8 {[%clk 0:02:53]} 11. Ng3 {[%clk 0:02:53.4]}
11... h5 {[%clk 0:02:39.9]} 12. Bg5 {[%clk 0:02:49.3]} 12... Qc8 {[%clk
0:02:36.6]} 13. Bb3 {[%clk 0:01:55.8]} 13... Bg4 {[%clk 0:02:26.1]} 14. h3
{[%clk 0:01:37.5]} 14... Bxf3 {[%clk 0:02:23.4]} 15. Qxf3 {[%clk 0:01:37.1]}
15... Nh7 {[%clk 0:02:19.3]} 16. Qxf7+ {[%clk 0:01:20.6]} 16... Kh8 {[%clk
0:02:18.6]} 17. Qxg6 {[%clk 0:01:20.9]} 17... exd4 {[%clk 0:02:06.9]} 18. Nxh5
{[%clk 0:01:20.4]} 18... Rg8 {[%clk 0:01:53.6]} 19. Bxg8 {[%clk 0:01:16.1]}
19... Qxg8 {[%clk 0:01:54.5]} 20. Nxg7 {[%clk 0:01:16.3]} 20... Qxg7 {[%clk
0:01:53.5]} 21. Qxg7+ {[%clk 0:01:16.2]} 21... Kxg7 {[%clk 0:01:54.2]} 22. Bd2
{[%clk 0:01:16.4]} 22... d3 {[%clk 0:01:52.3]} 23. Re3 {[%clk 0:01:05.3]} 23...
Ne5 {[%clk 0:01:43.9]} 24. f4 {[%clk 0:01:05.4]} 24... Nc4 {[%clk 0:01:41.6]}
25. Rxd3 {[%clk 0:01:05.9]} 25... Nxb2 {[%clk 0:01:41.9]} 26. Rg3+ {[%clk
0:01:04.4]} 26... Kf7 {[%clk 0:01:40.2]} 27. Re1 {[%clk 0:00:50.9]} 27... Nc4
{[%clk 0:01:38.4]} 28. Bc1 {[%clk 0:00:50]} 28... Nf6 {[%clk 0:01:35.7]} 29. e5
{[%clk 0:00:48.3]} 29... Nd5 {[%clk 0:01:27.1]} 30. e6+ {[%clk 0:00:46.4]} 30...
Kf6 {[%clk 0:01:27]} 31. h4 {[%clk 0:00:37.6]} 31... Rh8 {[%clk 0:01:19.7]} 32.
Rg5 {[%clk 0:00:32.1]} 32... Ne7 {[%clk 0:01:09.3]} 33. g3 {[%clk 0:00:28.6]}
33... Nf5 {[%clk 0:01:05.1]} 34. h5 {[%clk 0:00:22.3]} 34... d5 {[%clk
0:01:02.5]} 35. g4 {[%clk 0:00:12.6]} 35... Nfd6 {[%clk 0:00:58.1]} 36. e7
{[%clk 0:00:12.3]} 36... Ne4 {[%clk 0:00:55.1]} 37. Rf5+ {[%clk 0:00:12.6]}
37... Kg7 {[%clk 0:00:48.2]} 38. Rxd5 {[%clk 0:00:12.3]} 38... Ncd6 {[%clk
0:00:38.3]} 39. c4 {[%clk 0:00:08]} 39... c6 {[%clk 0:00:36.4]} 40. Re5 {[%clk
0:00:06.3]} 40... Nf6 {[%clk 0:00:33.6]} 41. g5 {[%clk 0:00:06.5]} 41... Ng4
{[%clk 0:00:32.8]} 42. h6+ {[%clk 0:00:06.7]} 42... Kf7 {[%clk 0:00:31.3]} 43.
e8=Q+ {[%clk 0:00:06.3]} 43... Nxe8 {[%clk 0:00:29.5]} 44. Rf5+ {[%clk
0:00:06.1]} 44... Kg6 {[%clk 0:00:28.8]} 45. Rc5 {[%clk 0:00:03.5]} 45... Nc7
{[%clk 0:00:26]} 46. Kg2 {[%clk 0:00:03.7]} 46... Rd8 {[%clk 0:00:24.8]} 47. Kg3
{[%clk 0:00:04]} 47... Rd6 {[%clk 0:00:13.8]} 48. Kxg4 {[%clk 0:00:03.9]} 48...
b6 {[%clk 0:00:14.5]} 49. Rce5 {[%clk 0:00:03.1]} 49... c5 {[%clk 0:00:13.6]}
50. f5+ {[%clk 0:00:03.5]} 50... Kh7 {[%clk 0:00:14.1]} 51. Re7+ {[%clk
0:00:03.2]} 51... Kg8 {[%clk 0:00:13.5]} 52. Rxc7 {[%clk 0:00:03.4]} 52... Rd4+
{[%clk 0:00:14.4]} 53. Kh5 {[%clk 0:00:03.4]} 53... Rd3 {[%clk 0:00:14.5]} 54.
Re8# {[%clk 0:00:02.8]} 1-0

[Event "*** Titled Tuesday Blitz"]
[Site "Chess.com"]
[Date "2020.11.10"]
[Round "3"]
[White "Ranindu2003"]
[Black "jens1102"]
[Result "0-1"]
[WhiteElo "2551"]
[BlackElo "2379"]
[TimeControl "180+1"]
[EndTime "10:32:32 PST"]
[Termination "jens1102 won by resignation"]

1. e4 {[%clk 0:02:59.6]} 1... e5 {[%clk 0:02:50.5]} 2. Nf3 {[%clk 0:02:59.4]}
2... Nc6 {[%clk 0:02:48.4]} 3. Bc4 {[%clk 0:02:58.7]} 3... Bc5 {[%clk
0:02:48.2]} 4. c3 {[%clk 0:02:58.7]} 4... Nf6 {[%clk 0:02:47.9]} 5. d3 {[%clk
0:02:59]} 5... O-O {[%clk 0:02:47.6]} 6. Bb3 {[%clk 0:02:58.6]} 6... a6 {[%clk
0:02:47.5]} 7. h3 {[%clk 0:02:55.1]} 7... Ba7 {[%clk 0:02:48]} 8. Nbd2 {[%clk
0:02:54.9]} 8... d6 {[%clk 0:02:46.5]} 9. Nf1 {[%clk 0:02:54.5]} 9... Be6 {[%clk
0:02:46.1]} 10. Ng3 {[%clk 0:02:54.3]} 10... Re8 {[%clk 0:02:46.1]} 11. Nh2
{[%clk 0:02:54.2]} 11... d5 {[%clk 0:02:45.3]} 12. Qf3 {[%clk 0:02:53.1]} 12...
dxe4 {[%clk 0:02:42.7]} 13. dxe4 {[%clk 0:02:54]} 13... Na5 {[%clk 0:02:29.2]}
14. Bc2 {[%clk 0:02:49.7]} 14... Nc4 {[%clk 0:02:14.4]} 15. Ng4 {[%clk
0:02:47.1]} 15... Nxg4 {[%clk 0:02:08.1]} 16. hxg4 {[%clk 0:02:48]} 16... Qd7
{[%clk 0:02:08.5]} 17. Nf5 {[%clk 0:02:35]} 17... Rad8 {[%clk 0:02:01.9]} 18.
Qh3 {[%clk 0:02:14.3]} 18... Bxf5 {[%clk 0:01:58]} 19. gxf5 {[%clk 0:02:10.3]}
19... h6 {[%clk 0:01:54.3]} 20. b3 {[%clk 0:01:39.4]} 20... Nb2 {[%clk
0:01:24.5]} 21. Bxh6 {[%clk 0:01:05.6]} 21... Bxf2+ {[%clk 0:01:02.2]} 22. Kf1
{[%clk 0:00:49]} 22... Qb5+ {[%clk 0:00:33.9]} 23. Kxf2 {[%clk 0:00:35.3]} 23...
gxh6 {[%clk 0:00:33.9]} 24. Qxh6 {[%clk 0:00:25.5]} 24... Qb6+ {[%clk
0:00:24.1]} 25. Qxb6 {[%clk 0:00:26]} 25... cxb6 {[%clk 0:00:25]} 26. Ke3 {[%clk
0:00:26.6]} 26... Rc8 {[%clk 0:00:12.5]} 27. Kd2 {[%clk 0:00:16.9]} 27... Red8+
{[%clk 0:00:08.5]} 28. Ke2 {[%clk 0:00:07.6]} 28... Rxc3 {[%clk 0:00:08.1]} 29.
Rac1 {[%clk 0:00:08.2]} 29... Rdc8 {[%clk 0:00:06.5]} 30. Kd2 {[%clk 0:00:06.3]}
30... b5 {[%clk 0:00:02.2]} 31. Rh3 {[%clk 0:00:06.5]} 31... b4 {[%clk
0:00:03.1]} 32. Rxc3 {[%clk 0:00:06]} 32... bxc3+ {[%clk 0:00:04]} 33. Ke2
{[%clk 0:00:06]} 33... Rd8 {[%clk 0:00:04.9]} 34. Ke3 {[%clk 0:00:04.8]} 34...
Rd2 {[%clk 0:00:05.1]} 35. a4 {[%clk 0:00:05.3]} 35... Rxg2 {[%clk 0:00:05.2]}
36. Bd3 {[%clk 0:00:05.7]} 36... Rd2 {[%clk 0:00:05.1]} 37. Bf1 {[%clk
0:00:04.8]} 37... Nd1+ {[%clk 0:00:04.4]} 38. Kf3 {[%clk 0:00:04.7]} 38... Rf2+
{[%clk 0:00:04.5]} 39. Kg3 {[%clk 0:00:04.2]} 39... Rxf1 {[%clk 0:00:05.2]} 40.
Kg2 {[%clk 0:00:04.8]} 40... Re1 {[%clk 0:00:05.9]} 41. Kf3 {[%clk 0:00:04.8]}
41... Rf1+ {[%clk 0:00:05.7]} 42. Ke2 {[%clk 0:00:04.7]} 42... Rh1 {[%clk
0:00:05.3]} 43. Rxd1 {[%clk 0:00:04.9]} 43... Rxd1 {[%clk 0:00:05.7]} 44. Kxd1
{[%clk 0:00:05.8]} 44... b5 {[%clk 0:00:06.5]} 45. Kc2 {[%clk 0:00:05.7]} 45...
b4 {[%clk 0:00:06.9]} 46. Kd3 {[%clk 0:00:04]} 46... Kg7 {[%clk 0:00:07.4]} 47.
Kc2 {[%clk 0:00:03.8]} 47... Kf6 {[%clk 0:00:07.8]} 48. Kd3 {[%clk 0:00:04.3]}
48... Kg5 {[%clk 0:00:08.3]} 49. a5 {[%clk 0:00:04.3]} 49... Kf4 {[%clk
0:00:08.4]} 50. f6 {[%clk 0:00:04.8]} 50... Kg5 {[%clk 0:00:08.2]} 51. Kc2
{[%clk 0:00:05.4]} 51... Kxf6 {[%clk 0:00:08.6]} 0-1